bitfinex-derivatives/quotes_BNBF0:USTF0_20250116
["timestamp","ask_amount","ask_price","bid_price","bid_amount"]
[1737055852144,2.14707959,713.75,712.68,3.742]
[1737055852145,1.05163082,713.19,712.68,3.742]
[1737055853041,1.05163082,713.2,712.68,3.742]
[1737055854148,1.05163082,713.24,712.68,3.742]
[1737055855345,0.71004988,713.78,712.68,3.742]
[1737055855346,1.05163082,713.25,712.68,3.742]
[1737055856550,1.05163082,713.27,712.68,3.742]
[1737055857550,1.05163082,713.28,712.68,3.742]
[1737055859150,1.05163082,713.33,712.68,3.742]
[1737055860154,1.05163082,713.32,712.68,3.742]
[1737055861558,1.05163082,713.37,712.68,3.742]
[1737055862652,1.05163082,713.31,712.68,3.742]
[1737055864052,1.05163082,713.33,712.68,3.742]
[1737055865058,1.05163082,713.32,712.68,3.742]
[1737055867160,1.05163082,713.34,712.68,3.742]
[1737055867861,1.05163082,713.36,712.68,3.742]
[1737055868860,0.71004988,713.78,712.68,3.742]
[1737055868861,1.05163082,713.38,712.68,3.742]
[1737055869960,1.05163082,713.39,712.68,3.742]
[1737055870962,1.05163082,713.37,712.68,3.742]
[1737055872164,1.05163082,713.32,712.68,3.742]
[1737055873157,1.05163082,713.38,712.68,3.742]
[1737055874763,1.05163082,713.36,712.68,3.742]
[1737055876162,1.05163082,713.38,712.68,3.742]
[1737055876762,0.71004988,713.78,712.68,3.742]
[1737055876763,1.05163082,713.39,712.68,3.742]
[1737055878162,1.05163082,713.38,712.68,3.742]
[1737055880564,0.71004988,713.78,712.68,3.742]
[1737055880565,1.05163082,713.35,712.68,3.742]
[1737055883563,0.71004988,713.78,712.68,3.742]
[1737055883564,1.05163082,713.36,712.68,3.742]
[1737055884668,1.05163082,713.31,712.68,3.742]
[1737055885471,1.05163082,713.32,712.68,3.742]
[1737055887372,1.05163082,713.29,712.68,3.742]
[1737055888474,1.05163082,713.28,712.68,3.742]
[1737055889770,1.05163082,713.27,712.68,3.742]
[1737055890874,0.71004988,713.72,712.68,3.742]
[1737055890875,1.05163082,713.26,712.68,3.742]
[1737055892075,1.05163082,713.23,712.68,3.742]
[1737055894076,1.05163082,713.2,712.68,3.742]
[1737055895180,1.05163082,713.29,712.68,3.742]
[1737055896180,1.05163082,713.3,712.68,3.742]
[1737055897175,1.05163082,713.31,712.68,3.742]
[1737055899776,1.05163082,713.66,712.68,3.742]
[1737055899777,1.05163082,713.3,712.68,3.742]
[1737055901080,1.05163082,713.39,712.68,3.742]
[1737055902182,1.26195698,713.95,712.68,3.742]
[1737055902183,1.05163082,713.5,712.68,3.742]
[1737055903281,1.05163082,713.58,712.68,3.742]
[1737055904582,1.05163082,713.6,712.68,3.742]
[1737055905986,1.33185668,713.71,712.68,3.742]
[1737055907082,0.28022586,713.71,712.68,3.742]
[1737055909091,1.05163082,713.69,712.68,3.742]
[1737055910087,1.05163082,713.68,712.68,3.742]
[1737055911292,1.05163082,713.62,712.68,3.742]
[1737055912288,1.05163082,713.61,712.68,3.742]
[1737055913395,0.28022586,713.71,712.68,3.742]
[1737055913396,1.05163082,713.63,712.68,3.742]
[1737055914593,1.05163082,713.52,712.68,3.742]
[1737055915493,1.05163082,713.53,712.68,3.742]
[1737055916693,1.05163082,713.49,712.68,3.742]
[1737055917795,1.05163082,713.46,712.68,3.742]
[1737055918894,0.70790368,713.7,712.68,3.742]
[1737055918895,1.05163082,713.36,712.68,3.742]
[1737055919891,1.05163082,713.55,712.68,3.742]
[1737055919892,1.05163082,713.4,712.68,3.742]
[1737055921087,1.05163082,713.46,712.68,3.742]
[1737055922292,1.05163082,713.47,712.68,3.742]
[1737055923396,1.05163082,713.69,712.68,3.742]
[1737055923397,1.05163082,713.49,712.68,3.742]
[1737055924491,1.05163082,713.42,712.68,3.742]
[1737055925400,1.05163082,713.45,712.68,3.742]
[1737055925592,0.70811233,713.7,712.68,3.742]
[1737055925898,0.28023371,713.69,712.68,3.742]
[1737055926697,1.04905773,713.47,712.68,3.742]
[1737055927899,1.04905773,713.44,712.68,3.742]
[1737055928897,1.04905773,713.45,712.68,3.742]
[1737055929799,0.28023371,713.69,712.68,3.742]
[1737055929800,1.04905773,713.5,712.68,3.742]
[1737055931101,1.04905773,713.49,712.68,3.742]
[1737055933200,1.04905773,713.44,712.68,3.742]
[1737055934604,1.04905773,713.42,712.68,3.742]
[1737055935401,0.28023371,713.69,712.68,3.742]
[1737055935402,1.04905773,713.47,712.68,3.742]
[1737055938708,1.04905773,713.45,712.68,3.742]
[1737055941110,1.04905773,713.43,712.68,3.742]
[1737055942110,1.04905773,713.44,712.68,3.742]
[1737055944106,1.04905773,713.42,712.68,3.742]
[1737055945008,1.04905773,713.32,712.68,3.742]
[1737055946011,1.04905773,713.29,712.68,3.742]
[1737055947212,1.04905773,713.28,712.68,3.742]
[1737055949316,1.04905773,713.22,712.68,3.742]
[1737055950619,1.04905773,713.23,712.68,3.742]
[1737055951915,1.04905773,713.25,712.68,3.742]
[1737055952915,1.04905773,713.23,712.68,3.742]
[1737055954719,1.04905773,713.24,712.68,3.742]
[1737055956020,1.04905773,713.3,712.68,3.742]
[1737055957120,1.04905773,713.31,712.68,3.742]
[1737055958214,1.04905773,713.32,712.68,3.742]
[1737055960525,1.04905773,713.34,712.68,3.742]
[1737055964121,1.04905773,713.33,712.68,3.742]
[1737055965128,1.04905773,713.29,712.68,3.742]
[1737055967630,1.04905773,713.27,712.68,3.742]
[1737055968630,1.04905773,713.26,712.68,3.742]
[1737055969527,1.04905773,713.24,712.68,3.742]
[1737055970727,0.70927385,713.68,712.68,3.742]
[1737055970728,1.04905773,713.25,712.68,3.742]
[1737055971836,1.04905773,713.26,712.68,3.742]
[1737055972933,1.04905773,713.25,712.68,3.742]
[1737055973835,1.04905773,713.32,712.68,3.742]
[1737055975034,1.04905773,713.29,712.68,3.742]
[1737055976935,1.04905773,713.27,712.68,3.742]
[1737055978841,1.04905773,713.3,712.68,3.742]
[1737055979943,1.04905773,713.31,712.68,3.742]
[1737055980841,1.04905773,713.33,712.68,3.742]
[1737055982142,1.04905773,713.36,712.68,3.742]
[1737055983442,1.04905773,713.35,712.68,3.742]
[1737055984546,1.04905773,713.34,712.68,3.742]
[1737055985441,1.04905773,713.35,712.68,3.742]
[1737055986442,0.70927385,713.68,712.68,3.742]
[1737055986443,1.04905773,713.36,712.68,3.742]
[1737055987845,1.04905773,713.37,712.68,3.742]
[1737055990049,1.04905773,713.44,712.68,3.742]
[1737055991149,1.04905773,713.45,712.68,3.742]
[1737055992248,1.04905773,713.61,712.68,3.742]
[1737055993353,1.04905773,713.6,712.68,3.742]
[1737055994549,1.04905773,713.38,712.68,3.742]
[1737055995253,1.04905773,713.33,712.68,3.742]
[1737055996751,1.04905773,713.23,712.68,3.742]
[1737055997954,1.04905773,712.97,712.68,3.742]
[1737055998756,1.04905773,713.22,712.68,3.742]
[1737055998950,0.28042231,713.21,712.68,3.742]
[1737056027273,1.04383109,713.17,712.68,3.742]
[1737056028068,0.28042231,713.21,712.68,3.742]
[1737056028069,1.04383109,713.16,712.68,3.742]
[1737056029271,1.04383109,713.1,712.68,3.742]
[1737056030678,1.04383109,713.09,712.68,3.742]
[1737056031877,1.04383109,713.02,712.68,3.742]
[1737056032977,0.28042231,713.21,712.68,3.742]
[1737056032978,1.04383109,712.92,712.68,3.742]
[1737056035180,1.04383109,712.91,712.68,3.742]
[1737056035977,1.04383109,712.9,712.68,3.742]
[1737056038582,0.70920939,713.2,712.68,3.742]
[1737056038583,1.04383109,712.87,712.68,3.742]
[1737056039683,1.04383109,712.84,712.68,3.742]
[1737056040483,1.04383109,712.82,712.68,3.742]
[1737056041380,0.70920939,713.2,712.68,3.742]
[1737056041381,1.04383109,712.91,712.68,3.742]
[1737056042487,1.04383109,712.83,712.68,3.742]
[1737056043991,1.04383109,712.87,712.68,3.742]
[1737056044585,1.04383109,712.92,712.68,3.742]
[1737056045488,0.28042231,713.21,712.68,3.742]
[1737056049190,1.05034644,713.14,712.68,3.742]
[1737056052294,1.05034644,713.17,712.68,3.742]
[1737056054593,1.05034644,713.19,712.68,3.742]
[1737056055598,1.05034644,713.2,712.68,3.742]
[1737056056399,1.33076875,713.21,712.68,3.742]
[1737056058196,0.28042231,713.21,712.68,3.742]
[1737056073099,1.33076875,713.21,712.68,3.742]
[1737056074302,1.05034644,713.19,712.68,3.742]
[1737056075503,1.05034644,713.17,712.68,3.742]
[1737056076400,1.05034644,713.14,712.68,3.742]
[1737056077605,1.05034644,713.1,712.68,3.742]
[1737056078503,1.05034644,713.08,712.68,3.742]
[1737056079826,1.05034644,713.07,712.68,3.742]
[1737056081012,1.05034644,713.05,712.68,3.742]
[1737056082210,1.05034644,713.03,712.68,3.742]
[1737056083413,1.05034644,713.01,712.68,3.742]
[1737056084714,1.05034644,712.97,712.68,3.742]
[1737056086215,1.05034644,712.99,712.68,3.742]
[1737056087717,1.05034644,713.01,712.68,3.742]
[1737056090919,1.05034644,713.0,712.68,3.742]
[1737056092011,1.05034644,713.02,712.68,3.742]
[1737056093521,1.05034644,713.0,712.68,3.742]
[1737056094621,0.28042231,713.21,712.68,3.742]
[1737056094622,1.05034644,713.04,712.68,3.742]
[1737056095622,0.28042231,713.21,712.68,3.742]
[1737056095623,1.05034644,713.08,712.68,3.742]
[1737056096726,1.33076875,713.21,712.68,3.742]
[1737056099026,1.05034644,713.19,712.68,3.742]
[1737056099721,0.28042231,713.21,712.68,3.742]
[1737056105631,1.05034644,713.16,712.68,3.742]
[1737056106431,1.05034644,713.19,712.68,3.742]
[1737056107324,0.28042231,713.21,712.68,3.742]
[1737056131156,1.33030513,713.21,712.68,3.742]
[1737056132658,1.04988282,713.18,712.68,3.742]
[1737056133760,0.28042231,713.21,712.68,3.742]
[1737056133761,1.04988282,713.19,712.68,3.742]
[1737056134762,0.28042231,713.21,712.68,3.742]
[1737056135860,1.04988282,713.18,712.68,3.742]
[1737056136956,1.04988282,713.19,712.68,3.742]
[1737056139164,1.04988282,713.2,712.68,3.742]
[1737056140158,0.28042231,713.21,712.68,3.742]
[1737056142463,1.04988282,713.19,712.68,3.742]
[1737056145868,1.04988282,713.08,712.68,3.742]
[1737056146967,1.04988282,713.09,712.68,3.742]
[1737056150469,1.04988282,713.08,712.68,3.742]
[1737056151471,1.04988282,713.03,712.68,3.742]
[1737056152471,1.04988282,713.02,712.68,3.742]
[1737056153573,1.04988282,713.06,712.68,3.742]
[1737056155476,1.04988282,713.07,712.68,3.742]
[1737056156370,1.04988282,713.05,712.68,3.742]
[1737056157773,1.04988282,713.08,712.68,3.742]
[1737056158973,1.04988282,713.07,712.68,3.742]
[1737056160173,1.04988282,713.09,712.68,3.742]
[1737056161379,1.04988282,713.07,712.68,3.742]
[1737056162378,1.04988282,713.04,712.68,3.742]
[1737056164584,1.04988282,713.02,712.68,3.742]
[1737056165585,1.04988282,712.91,712.68,3.742]
[1737056166678,1.04988282,712.89,712.68,3.742]
[1737056167584,2.14351077,713.43,712.68,3.742]
[1737056167585,1.04988282,712.88,712.68,3.742]
[1737056168679,1.04988282,712.9,712.68,3.742]
[1737056169890,1.04988282,712.94,712.68,3.742]
[1737056172892,1.04988282,712.98,712.68,3.742]
[1737056176091,1.04988282,712.97,712.68,3.742]
[1737056178495,1.04988282,712.96,712.68,3.742]
[1737056179689,1.04988282,712.97,712.68,3.742]
[1737056181098,1.04988282,713.17,712.68,3.742]
[1737056181099,1.04988282,713.43,712.68,3.742]
[1737056182196,1.04988282,713.51,712.68,3.742]
[1737056182493,0.28030833,713.5,712.68,3.742]
[1737056185595,1.04988282,713.37,712.68,3.742]
[1737056186598,1.04988282,713.35,712.68,3.742]
[1737056187501,1.04988282,713.37,712.68,3.742]
[1737056188801,1.04988282,713.4,712.68,3.742]
[1737056189897,1.04988282,713.41,712.68,3.742]
[1737056190797,1.04988282,713.42,712.68,3.742]
[1737056191904,0.28030833,713.5,712.68,3.742]
[1737056191905,1.04988282,713.34,712.68,3.742]
[1737056193404,1.04988282,713.35,712.68,3.742]
[1737056194309,1.04988282,713.47,712.68,3.742]
[1737056195507,0.28030833,713.5,712.68,3.742]
[1737056195508,1.04988282,713.49,712.68,3.742]
[1737056196609,0.28030833,713.5,712.68,3.742]
[1737056202211,1.04988282,713.41,712.68,3.742]
[1737056203311,1.04988282,713.49,712.68,3.742]
[1737056205206,0.28030833,713.5,712.68,3.742]
[1737056205207,1.04988282,713.48,712.68,3.742]
[1737056205912,0.28030833,713.5,712.68,3.742]
[1737056205913,1.04988282,713.46,712.68,3.742]
[1737056207312,0.28030833,713.5,712.68,3.742]
[1737056212320,1.04988282,713.44,712.68,3.742]
[1737056213519,1.04988282,713.41,712.68,3.742]
[1737056214313,1.04988282,713.37,712.68,3.742]
[1737056215315,1.04988282,713.35,712.68,3.742]
[1737056217423,1.04988282,713.4,712.68,3.742]
[1737056218124,1.04988282,713.39,712.68,3.742]
[1737056219525,0.28030833,713.5,712.68,3.742]
[1737056235232,1.81737152,716.3,712.68,3.742]
[1737056235433,0.2792828,716.12,712.68,3.742]
[1737056235733,1.04642316,714.17,712.68,3.742]
[1737056235932,0.28005321,714.15,712.68,3.742]
[1737056236632,1.04642316,714.06,712.68,3.742]
[1737056236831,0.28009243,714.05,712.68,3.742]
[1737056238829,1.04642316,714.02,712.68,3.742]
[1737056239030,0.28010812,714.01,712.68,3.742]
[1737056239634,1.04642316,713.97,712.68,3.742]
[1737056239933,0.28012773,713.96,712.68,3.742]
[1737056244134,1.32655089,713.96,712.68,3.742]
[1737056245336,0.28012773,713.96,712.68,3.742]
[1737056246638,1.32655089,713.96,712.68,3.742]
[1737056248442,1.04642316,713.95,712.68,3.742]
[1737056249040,0.28013558,713.94,712.68,3.742]
[1737056249640,1.04642316,713.86,712.68,3.742]
[1737056250743,1.04642316,713.82,712.68,3.742]
[1737056251841,1.04642316,713.79,712.68,3.742]
[1737056253335,1.04642316,713.73,712.68,3.742]
[1737056254841,1.04642316,713.72,712.68,3.742]
[1737056256045,1.04642316,713.71,712.68,3.742]
[1737056257345,1.04642316,713.69,712.68,3.742]
[1737056258347,1.04642316,713.63,712.68,3.742]
[1737056259545,1.04642316,713.61,712.68,3.742]
[1737056261450,1.04642316,713.59,712.68,3.742]
[1737056262053,0.70871639,713.93,712.68,3.742]
[1737056262253,0.28014343,713.92,712.68,3.742]
[1737056263253,1.0504816,713.58,712.68,3.742]
[1737056264561,0.28014343,713.92,712.68,3.742]
[1737056264562,1.0504816,713.63,712.68,3.742]
[1737056265559,1.0504816,713.62,712.68,3.742]
[1737056266564,1.0504816,713.71,712.68,3.742]
[1737056267761,1.0504816,713.7,712.68,3.742]
[1737056268760,1.0504816,713.67,712.68,3.742]
[1737056269762,1.0504816,713.7,712.68,3.742]
[1737056270765,1.0504816,713.58,712.68,3.742]
[1737056271959,1.0504816,713.57,712.68,3.742]
[1737056273360,1.0504816,713.61,712.68,3.742]
[1737056274157,1.0504816,713.88,712.68,3.742]
[1737056274158,1.0504816,713.62,712.68,3.742]
[1737056275467,1.0504816,713.63,712.68,3.742]
[1737056276366,1.0504816,713.74,712.68,3.742]
[1737056277668,1.0504816,713.76,712.68,3.742]
[1737056280571,1.0504816,713.75,712.68,3.742]
[1737056281671,1.0504816,713.74,712.68,3.742]
[1737056284274,1.0504816,713.71,712.68,3.742]
[1737056285473,1.0504816,713.55,712.68,3.742]
[1737056287472,1.0504816,713.57,712.68,3.742]
[1737056288474,1.0504816,713.64,712.68,3.742]
[1737056290780,0.28014343,713.92,712.68,3.742]
[1737056290781,1.0504816,713.66,712.68,3.742]
[1737056291780,1.0504816,713.6,712.68,3.742]
[1737056293983,1.0504816,713.59,712.68,3.742]
[1737056295281,1.0504816,713.63,712.68,3.742]
[1737056296679,1.0504816,713.64,712.68,3.742]
[1737056298885,1.0504816,713.62,712.68,3.742]
[1737056300183,1.0504816,713.64,712.68,3.742]
[1737056300881,1.0504816,713.6,712.68,3.742]
[1737056302087,1.0504816,713.59,712.68,3.742]
[1737056304288,1.0504816,713.57,712.68,3.742]
[1737056305489,0.28014343,713.92,712.68,3.742]
[1737056305490,1.0504816,713.7,712.68,3.742]
[1737056305692,1.0504816,713.7,712.69,0.25765037]
[1737056306090,1.0504816,713.7,712.7,0.25765037]
[1737056306293,0.28014343,713.92,712.69,1.04841952]
[1737056306984,0.28014343,713.92,712.69,2.30341952]
[1737056307188,0.28014343,713.92,712.69,4.75441952]
[1737056307391,0.28014343,713.92,712.69,3.706]
[1737056308395,0.28014343,713.92,712.7,0.25764311]
[1737056308593,0.28014343,713.92,712.71,0.25764078]
[1737056308794,0.28014343,713.92,712.72,0.25764078]
[1737056308990,0.28014343,713.92,712.73,0.25764078]
[1737056309189,0.28014343,713.92,712.69,3.706]
[1737056309495,0.28014343,713.92,712.7,0.25764016]
[1737056309898,0.28014343,713.92,712.71,0.28061904]
[1737056310195,0.28014343,713.92,712.72,0.25764016]
[1737056313194,0.28014343,713.92,712.73,0.25760471]
[1737056313399,0.28014343,713.92,712.74,0.25760471]
[1737056313595,0.28014343,713.92,712.75,0.25760471]
[1737056313799,0.28014343,713.92,712.76,0.25760471]
[1737056313999,0.28014343,713.92,712.72,0.25760471]
[1737056314207,0.28014343,713.92,712.73,0.25760471]
[1737056314400,0.28014343,713.92,712.74,0.25760471]
[1737056314599,0.28014343,713.92,712.71,0.28061904]
[1737056314600,0.28014343,713.92,712.75,0.25760471]
[1737056314895,0.28014343,713.92,712.76,0.25760471]
[1737056315098,0.28014343,713.92,712.77,0.25760471]
[1737056315402,0.28014343,713.92,712.78,0.25760471]
[1737056315602,0.28014343,713.92,712.79,0.25760471]
[1737056315900,0.28014343,713.92,712.8,0.25760105]
[1737056316200,0.28014343,713.92,712.81,0.25760105]
[1737056316397,0.28014343,713.92,712.82,0.25760105]
[1737056316594,0.28014343,713.92,712.83,0.25760105]
[1737056316796,0.28014343,713.92,712.71,0.28061904]
[1737056316797,0.28014343,713.92,712.84,0.25760105]
[1737056316999,0.28014343,713.92,712.85,0.25760105]
[1737056317200,0.28014343,713.92,712.72,0.25760105]
[1737056317393,0.28014343,713.92,712.73,0.25760036]
[1737056317597,0.28014343,713.92,712.74,0.25760036]
[1737056317800,0.28014343,713.92,712.75,0.25760036]
[1737056317992,0.28014343,713.92,712.71,0.28061904]
[1737056317993,0.28014343,713.92,712.76,0.25760036]
[1737056318195,0.28014343,713.92,712.77,0.25760036]
[1737056318396,0.28014343,713.92,712.78,0.25760036]
[1737056318600,0.28014343,713.92,712.79,0.25760335]
[1737056318800,0.28014343,713.92,712.71,0.28061904]
[1737056319001,0.28014343,713.92,712.72,0.25760323]
[1737056322496,0.28014343,713.92,712.72,1.37260323]
[1737056322702,0.28014343,713.92,712.73,0.25760323]
[1737056322998,0.28014343,713.92,712.74,0.25760466]
[1737056323304,0.28014343,713.92,712.72,1.115]
[1737056323505,0.28014343,713.92,712.73,0.25760728]
[1737056324504,0.28014343,713.92,712.74,0.25760555]
[1737056324705,0.28014343,713.92,712.75,0.25760555]
[1737056324903,0.28014343,713.92,712.76,0.25760555]
[1737056325099,0.28014343,713.92,712.72,1.115]
[1737056325302,0.28014343,713.92,712.73,0.25760537]
[1737056327309,0.28014343,713.92,712.74,0.25760752]
[1737056327505,0.28014343,713.92,712.75,0.25760752]
[1737056327811,0.28014343,713.92,712.76,0.25760752]
[1737056328003,0.28014343,713.92,712.77,0.25760752]
[1737056328206,0.28014343,713.92,712.78,0.25760752]
[1737056328406,0.28014343,713.92,712.79,0.25760752]
[1737056328611,0.28014343,713.92,712.8,0.25760752]
[1737056328911,0.28014343,713.92,712.81,0.25760752]
[1737056329105,0.28014343,713.92,712.82,0.25760752]
[1737056329306,0.28014343,713.92,712.72,1.3956151]
[1737056329307,0.28014343,713.92,712.83,0.25760752]
[1737056329512,0.28014343,713.92,712.84,0.25760752]
[1737056329712,0.28014343,713.92,712.72,1.3956151]
[1737056329913,0.28014343,713.92,712.73,0.25760526]
[1737056332916,0.28014343,713.92,712.74,0.25760353]
[1737056333115,0.28014343,713.92,712.75,0.25760353]
[1737056333310,0.28014343,713.92,712.76,0.25760353]
[1737056333510,0.28014343,713.92,712.77,0.25760353]
[1737056333713,0.28014343,713.92,712.78,0.25760353]
[1737056334007,0.28014343,713.92,712.72,1.3956151]
[1737056334008,0.28014343,713.92,712.79,0.25760353]
[1737056334209,0.28014343,713.92,712.8,0.25760353]
[1737056334513,0.28014343,713.92,712.81,0.25760353]
[1737056334713,0.28014343,713.92,712.82,0.25760353]
[1737056334914,0.28014343,713.92,712.72,0.2806151]
[1737056335215,0.28014343,713.92,712.73,0.25760502]
[1737056335714,0.28014343,713.92,712.74,0.25760646]
[1737056336614,0.28014343,713.92,712.74,1.18160646]
[1737056336815,0.28014343,713.92,712.75,0.25760646]
[1737056337313,0.28014343,713.92,712.75,1.18260646]
[1737056337514,0.28014343,713.92,712.76,0.25760646]
[1737056338314,0.28014343,713.92,712.77,0.25760858]
[1737056338516,0.28014343,713.92,712.78,0.25760858]
[1737056338815,0.28014343,713.92,712.79,0.25760858]
[1737056339015,0.28014343,713.92,712.8,0.25760858]
[1737056339215,0.28014343,713.92,712.81,0.25760858]
[1737056339418,0.28014343,713.92,712.82,0.25760858]
[1737056339717,0.28014343,713.92,712.83,0.25760858]
[1737056339917,0.28014343,713.92,712.84,0.25760858]
[1737056340118,0.28014343,713.92,712.85,0.25760858]
[1737056340317,0.28014343,713.92,712.86,0.25760858]
[1737056340617,0.28014343,713.92,712.87,0.25760858]
[1737056340818,0.28014343,713.92,712.88,0.25760571]
[1737056341120,1.0504816,713.91,712.98,1.04841952]
[1737056341515,1.0504816,713.91,712.99,0.25760587]
[1737056341912,1.0504816,713.91,712.98,1.04841952]
[1737056342317,0.28014343,713.92,713.02,1.04841952]
[1737056342318,1.0504816,713.87,713.02,1.04841952]
[1737056343423,0.28014343,713.92,712.91,1.04841952]
[1737056344518,0.28014343,713.92,712.93,1.04841952]
[1737056345521,0.28014343,713.92,712.95,1.04841952]
[1737056347922,0.28014343,713.92,712.93,1.04841952]
[1737056349223,0.28014343,713.92,712.92,1.04841952]
[1737056350622,0.28014343,713.92,712.92,2.46041952]
[1737056351523,0.28014343,713.92,712.92,1.412]
[1737056352524,1.0504816,713.84,712.99,1.04841952]
[1737056353625,1.0504816,713.84,713.0,1.04841952]
[1737056354724,0.28014343,713.92,713.02,1.04841952]
[1737056354725,1.0504816,713.81,713.02,1.04841952]
[1737056357424,1.0504816,713.78,713.04,1.04841952]
[1737056358422,1.0504816,713.78,712.92,1.412]
[1737056358423,1.0504816,713.74,712.93,1.04841952]
[1737056359620,1.0504816,713.74,712.92,1.412]
[1737056360621,1.0504816,713.76,712.92,1.412]
[1737056361728,0.28014343,713.92,712.92,1.412]
[1737056363028,0.28014343,713.92,712.92,2.6]
[1737056365327,1.75314139,715.23,712.92,2.6]
[1737056365533,0.27967334,715.12,712.92,2.6]
[1737056365730,1.04983002,714.58,712.92,3.75]
[1737056365934,0.27989252,714.56,712.92,3.75]
[1737056367034,0.70523287,714.55,712.92,3.75]
[1737056367234,0.27990427,714.53,712.92,3.75]
[1737056367827,0.27990427,714.53,712.93,0.25759367]
[1737056368033,0.27990427,714.53,712.92,3.75]
[1737056368034,0.27990427,714.53,712.99,1.04841952]
[1737056369034,0.27990427,714.53,713.13,1.04841952]
[1737056370535,0.27990427,714.53,713.12,1.04841952]
[1737056370835,0.27990427,714.53,713.2,1.04841952]
[1737056373031,0.27990427,714.53,713.17,1.04841952]
[1737056375231,0.27990427,714.53,713.17,2.25841952]
[1737056376037,0.27990427,714.53,713.17,1.21]
[1737056377835,0.27990427,714.53,713.17,2.444]
[1737056380840,0.27990427,714.53,713.17,3.698]
[1737056392653,0.27990427,714.53,713.17,4.74641952]
[1737056393451,0.27990427,714.53,713.17,3.698]
[1737056403656,0.27990427,714.53,713.2,1.04841952]
[1737056404951,0.27990427,714.53,713.21,1.04841952]
[1737056406058,1.53954842,714.53,713.29,1.04841952]
[1737056406856,1.25964415,714.52,713.3,1.04841952]
[1737056407060,1.25964415,714.52,713.3,2.25241952]
[1737056407255,0.2799121,714.51,713.3,2.25241952]
[1737056407657,0.2799121,714.51,713.3,1.204]
[1737056410961,0.2799121,714.51,713.33,1.04841952]
[1737056412965,0.2799121,714.51,713.32,1.04841952]
[1737056413867,0.2799121,714.51,713.3,1.204]
[1737056424477,0.2799121,714.51,713.3,2.25241952]
[1737056425477,0.2799121,714.51,713.3,3.47141952]
[1737056425672,0.2799121,714.51,713.3,2.423]
[1737056426676,1.05042871,714.44,713.36,1.04841952]
[1737056427175,0.27994345,714.43,713.36,1.04841952]
[1737056427777,0.27994345,714.43,713.35,1.04841952]
[1737056427978,0.27994345,714.43,713.35,2.03341952]
[1737056429581,0.27994345,714.43,713.35,0.985]
[1737056434484,0.27994345,714.43,713.35,2.259]
[1737056450594,0.27994345,714.43,713.35,3.175]
[1737056461706,0.27994345,714.43,713.38,1.04670151]
[1737056463003,0.27994345,714.43,713.38,1.188]
[1737056463207,0.27994345,714.43,713.38,2.249]
[1737056464011,0.27994345,714.43,713.39,1.04670151]
[1737056464805,0.27994345,714.43,713.41,1.04670151]
[1737056467105,0.27994345,714.43,713.38,2.249]
[1737056468803,0.27994345,714.43,713.38,3.222]
[1737056470409,0.27994345,714.43,713.4,1.04670151]
[1737056471615,0.27994345,714.43,713.38,3.222]
[1737056532559,1.05033663,714.35,713.38,3.222]
[1737056532764,0.27997872,714.34,713.38,3.222]
[1737056533867,1.05033663,714.27,713.38,3.222]
[1737056534461,0.27997872,714.34,713.38,3.222]
[1737056534462,1.05033663,714.26,713.38,3.222]
[1737056535867,1.05033663,714.25,713.38,3.222]
[1737056536363,1.05033663,714.28,713.38,3.222]
[1737056536866,0.28000616,714.27,713.38,3.222]
[1737056537262,1.33034279,714.27,713.38,3.222]
[1737056539469,0.28000616,714.27,713.38,3.222]
[1737056542664,1.33034279,714.27,713.38,3.222]
[1737056543761,0.28000616,714.27,713.38,3.222]
[1737056572894,0.27999048,714.31,713.38,3.222]
[1737056582896,1.05033663,714.29,713.38,3.222]
[1737056583101,0.28000224,714.28,713.38,3.222]
[1737056633442,0.28000224,714.28,713.39,1.04397088]
[1737056634439,0.28000224,714.28,713.38,1.04397088]
[1737056634745,0.28000224,714.28,713.38,2.18097088]
[1737056634940,0.28000224,714.28,713.38,3.91597088]
[1737056635846,0.28000224,714.28,713.38,2.872]